Cogmind - Beta 14 @@@ ROGUE MODE // 2024.08.28 @ 13:59:58 Player: star Result: Destroyed by D-53 Grenadier with Mini Grenade Launcher Performance ------------- Evolutions (0) 0 Regions Visited (4) 800 Robots Destroyed (23) 115 Value Destroyed (562) 562 Prototype IDs (23) 460 Alien Tech Used (0) 0 Bonus (300) 300 TOTAL SCORE: 2237 Bonus ------- Aligned with FarCom 300 Cogmind --------- Core Integrity 0/250 Matter 300/300 Energy 91/100 System Corruption 0% Temperature Cool (1) Movement Treading (160) Location -9/Mines Parts ------- > --- POWER (1) -------- (None) > --- PROPULSION (2) --- Light Treads > --- UTILITY (2) ------ Medium Storage Unit > --- WEAPON (2) ------- (None) > --- INVENTORY (10) --- Utility Shielding Hacking Suite Shotgun Shotgun Grenade Launcher Grenade Launcher Datajack Longsword +1 Peak State ------------ > --- POWER ------------ Ion Engine > --- PROPULSION ------- Light Treads Light Treads > --- UTILITY ---------- Medium Storage Unit Hardened Light Armor Plating > --- WEAPON ----------- Shotgun Longsword +1 > --- INVENTORY -------- Light Treads Utility Shielding Hardened Light Armor Plating Hacking Suite Shotgun Shotgun Shotgun Grenade Launcher Grenade Launcher Datajack [Rating: 17] Favorites ----------- Power Ion Engine Engine Ion Engine Propulsion Light Treads Treads Light Treads Utility Medium Storage Unit Device Heat Sink Storage Medium Storage Unit Protection Hardened Light Armor Plating Weapon Shotgun Energy Gun Medium Laser Ballistic Gun Shotgun Slashing Weapon Longsword +1 Build | -11 -10 -10 -10 -9 ------- Run | Yrd Mat Min Exi Min Slots Evolved . | . . . . . Power . | . . . . . Propulsion . | . . . . . Utility . | . . . . . Weapon . | . . . . . Parts Attached 31 | 6 18 1 3 3 Power 3 | 1 1 . 1 . Engine 3 | 1 1 . 1 . Core . | . . . . . Reactor . | . . . . . Propulsion 10 | 2 6 1 . 1 Treads 10 | 2 6 1 . 1 Leg . | . . . . . Wheel . | . . . . . Hover . | . . . . . Flight . | . . . . . Utility 6 | 1 4 . . 1 Device 1 | . 1 . . . Storage 2 | 1 1 . . . Processor . | . . . . . Hackware . | . . . . . Protection 3 | . 2 . . 1 Artifact . | . . . . . Weapon 12 | 2 7 . 2 1 Energy Gun 3 | 1 2 . . . Energy Cannon . | . . . . . Ballistic Gun 8 | 1 5 . 1 1 Ballistic Cannon . | . . . . . Launcher . | . . . . . Special Weapon . | . . . . . Impact Weapon . | . . . . . Slashing Weapon 1 | . . . 1 . Piercing Weapon . | . . . . . Special Melee Weapon . | . . . . . Unidentified Prototypes . | . . . . . Parts Lost 8 | . 1 . 1 6 Power 1 | . . . 1 . Propulsion 2 | . . . . 2 Utility 2 | . . . . 2 Weapon 3 | . 1 . . 2 Highest Loss Streak 6 | . 1 . 1 6 To Critical Strikes . | . . . . . Average Slot Usage (%) 95 | . 94 100 96 82 Engine 12 | . 14 14 10 . Treads 27 | . 27 28 28 27 Storage 14 | . 14 14 14 14 Protection 11 | . 10 14 14 13 Energy Gun 5 | . 10 . . . Ballistic Gun 20 | . 16 28 23 27 Peak Build Rating 17 | 6 11 11 17 11 Average Rating 9 | 4 8 11 12 10 On Entrance 7 | . 6 11 11 11 Naked Turns . | . . . . . Heaviest Build 26 | 14 26 26 26 21 Greatest Support 40 | 40 40 40 40 40 Greatest Overweight (x) 1 | 1 . . . 1 Average Overweight (x) . | . . . . . Largest Inventory Capacity 10 | 8 10 10 10 10 Average Capacity 9 | 6 8 10 10 10 Most Carried 10 | . 10 10 10 10 Average Carried 7 | . 6 9 9 9 Final Capacity 10 | 8 10 10 10 10 Final Carried 10 | . 10 10 10 8 Class Distribution -------------------- 100% | Mutant Dominant Class ---------------- Mutant | -10/Materials Mutant | -10/Mines Mutant | -10/Exiles Mutant | -9/Mines Resources | -11 -10 -10 -10 -9 ----------- Run | Yrd Mat Min Exi Min Matter Collected 738 | 260 337 96 . 45 Remotely . | . . . . . Salvage Created 716 | . 594 122 . . Parts 48 | . 42 6 . . Haulers Intercepted 2 | . 2 . . . Recyclers Shooed . | . . . . . Parts Field Recycled . | . . . . . Retrieved Matter . | . . . . . Parts Self-Destructed . | . . . . . Prevented . | . . . . . Kills | -11 -10 -10 -10 -9 ------- Run | Yrd Mat Min Exi Min Combat Hostiles Destroyed 19 | . 15 4 . . Guns 19 | . 15 4 . . Classes Destroyed 5 | . 4 1 . . Hauler 2 | . 2 . . . Operator 2 | . 2 . . . Swarmer 7 | . 5 2 . . Grunt 10 | . 10 . . . Sentry 2 | . . 2 . . Best Kill Streak 3 | . 3 2 . . Combat Bots Only 3 | . 3 2 . . Max Kills in Single Turn 2 | . 2 1 . . Gunslinging 1 | . 1 . . . Exploded . | . . . . . Melee . | . . . . . Uniques/NPCs Destroyed . | . . . . . Combat | -11 -10 -10 -10 -9 -------- Run | Yrd Mat Min Exi Min Hostile Shots Fired 146 | . 79 29 6 32 Missed 43 | . 26 8 1 8 Damage Taken 1841 | . 615 255 238 733 Core 259 | . 64 13 10 172 Absorbed by Shields . | . . . . . Core Remaining (%) 100 | 100 . . . . Volleys Fired 76 | . 64 12 . . Largest 2 | . 2 2 . . Hottest 90 | . 90 46 . . Shots Fired 142 | . 118 24 . . Gun 142 | . 118 24 . . Cannon . | . . . . . Launcher . | . . . . . Special . | . . . . . Kinetic 82 | . 58 24 . . Thermal 60 | . 60 . . . Explosive . | . . . . . Electromagnetic . | . . . . . Robot Hit Streak 16 | . 16 7 . . Robot Miss Streak 5 | . 5 5 . . Penetration Max . | . . . . . Secondary Targets 2 | . 2 . . . Max Gunslinging Chain 1 | . 1 . . . Shots Hit Robots 94 | . 79 15 . . Core Hits 40 | . 34 6 . . Critical Kills . | . . . . . Critical Parts Destroyed 1 | . . 1 . . Critical Strikes 6 | . 5 1 . . Burn 5 | . 5 . . . Destroy 1 | . . 1 . . Melee Attacks . | . . . . . Impact . | . . . . . Slashing . | . . . . . Piercing . | . . . . . Sneak Attacks . | . . . . . Combat Hostiles . | . . . . . Follow-up Attacks . | . . . . . Damage Inflicted 1259 | . 1066 193 . . Guns 1238 | . 1048 190 . . Cannons . | . . . . . Explosions . | . . . . . Melee . | . . . . . Ramming 21 | . 18 3 . . Kinetic 700 | . 510 190 . . Thermal 538 | . 538 . . . Explosive . | . . . . . Electromagnetic . | . . . . . Impact . | . . . . . Slashing . | . . . . . Piercing . | . . . . . Highest Corruption . | . . . . . Average Corruption . | . . . . . Corruption Purged . | . . . . . Corruption Blocked . | . . . . . Overload Shots . | . . . . . Overflow Damage . | . . . . . Projectiles . | . . . . . Explosions . | . . . . . Melee . | . . . . . Knockbacks . | . . . . . Impact . | . . . . . Kinetic . | . . . . . Secondary . | . . . . . Self-Inflicted Damage . | . . . . . Shots . | . . . . . Rammed 6 | . 5 1 . . Targets Rammed 6 | . 5 1 . . Kicked . | . . . . . Crushed . | . . . . . Highest Temperature 258 | . 258 45 . . Average Temperature 60 | . 62 22 . . Received Heat Transfer 303 | . 249 54 . . Siege Activations . | . . . . . Robots Corrupted . | . . . . . Combat Hostiles . | . . . . . Parts Fried . | . . . . . Impact Corruptions . | . . . . . Robots Melted . | . . . . . Combat Hostiles . | . . . . . Parts Melted 4 | . 4 . . . Heat Transferred 1925 | . 1925 . . . Parts Sabotaged . | . . . . . Parts Stolen . | . . . . . Parts Stripped . | . . . . . Power Chain Reactions . | . . . . . Alert | -11 -10 -10 -10 -9 ------- Run | Yrd Mat Min Exi Min Peak Influence 200 | . 200 189 . . Initial 19 | . . 19 . . Average 59 | . 71 52 . . Maximum Alert Level 1 | . 1 . . . Low Security (%) 97 | 100 96 100 . 100 Level 1 2 | . 3 . . . Level 2 . | . . . . . Level 3 . | . . . . . Level 4 . | . . . . . Level 5 . | . . . . . High Security . | . . . . . Max Security . | . . . . . Squads Dispatched 3 | . 3 . . . Investigation 1 | . 1 . . . Extermination . | . . . . . Reinforcement 2 | . 2 . . . Assault . | . . . . . Garrison . | . . . . . Intercept . | . . . . . Searches Triggered . | . . . . . Construction Impeded . | . . . . . Haulers Reinforced . | . . . . . Active Scanning Responses . | . . . . . Cargo Convoy Interrupts . | . . . . . Stealth | -11 -10 -10 -10 -9 --------- Run | Yrd Mat Min Exi Min Distress Signals 2 | . 2 . . . Communications Jammed . | . . . . . Distress Signals . | . . . . . Times Spotted 49 | . 32 7 1 9 Peak Tracking Total 7 | . 4 3 1 7 Tactical Retreats 8 | . 2 4 . 2 Traps | -11 -10 -10 -10 -9 ------- Run | Yrd Mat Min Exi Min Traps Triggered 5 | . 5 . . . Indirectly . | . . . . . Trap Hack Attempts . | . . . . . Triggered . | . . . . . Disarmed . | . . . . . Reprogrammed . | . . . . . Reused . | . . . . . Traps Extracted . | . . . . . Installed . | . . . . . Triggered . | . . . . . Machines | -11 -10 -10 -10 -9 ---------- Run | Yrd Mat Min Exi Min Machines Disabled . | . . . . . Max in Single Turn . | . . . . . Machines Repaired . | . . . . . Machines Dismantled . | . . . . . Machines Sabotaged . | . . . . . Overloaded Fab Kills . | . . . . . Hacking | -11 -10 -10 -10 -9 --------- Run | Yrd Mat Min Exi Min Machines Accessed 8 | . 5 1 2 . Terminals 6 | . 5 1 . . Fabricators . | . . . . . Repair Stations . | . . . . . Recycling Units . | . . . . . Scanalyzers . | . . . . . Garrison Access . | . . . . . Total Hacks 43 | . 18 1 24 . Successful 32 | . 8 . 24 . Failed 11 | . 10 1 . . Catastrophic . | . . . . . Database Lockouts . | . . . . . Manual 20 | . 17 2 1 . Terminals 19 | . 18 1 . . Fabricators . | . . . . . Repair Stations . | . . . . . Recycling Units . | . . . . . Scanalyzers . | . . . . . Garrison Access . | . . . . . Terminal Hacks 25 | . 1 . 24 . Record 23 | . . . 23 . Zone Layout 1 | . 1 . . . Derelict Proto ID Bank 1 | . . . 1 . Fabricator Hacks . | . . . . . Repair Station Hacks . | . . . . . Recycling Unit Hacks . | . . . . . Scanalyzer . | . . . . . Garrison Access Hacks . | . . . . . Unauthorized Hacks 6 | . 6 . . . Terminals 6 | . 6 . . . Botnet 2 | . 2 . . . Operators 1 | . 1 . . . Skim 3 | . 3 . . . Fabricators . | . . . . . Repair Stations . | . . . . . Recycling Units . | . . . . . Scanalyzers . | . . . . . Garrison Access . | . . . . . Data Cores Recovered . | . . . . . Used . | . . . . . Hacking Detections 6 | . 5 1 . . Full Trace Events . | . . . . . Feedback Events . | . . . . . Feedback Blocked . | . . . . . Robot Schematics Acquired . | . . . . . Robots Built . | . . . . . Authchips . | . . . . . Time . | . . . . . Total Robot Build Rating . | . . . . . Part Schematics Acquired . | . . . . . Parts Built . | . . . . . Authchips . | . . . . . Time . | . . . . . Total Part Build Rating . | . . . . . Parts Repaired . | . . . . . Time . | . . . . . Parts Recycled . | . . . . . Recycled Matter . | . . . . . Retrieved Matter . | . . . . . Retrieved Components . | . . . . . Parts Scanalyzed . | . . . . . Part Schematics Acquired . | . . . . . Parts Damaged . | . . . . . Bothacking | -11 -10 -10 -10 -9 ------------ Run | Yrd Mat Min Exi Min Used RIF Installer . | . . . . . Robots Hacked . | . . . . . Non-combat . | . . . . . Combat . | . . . . . Robot Hacks Applied . | . . . . . Relay Couplers Released . | . . . . . Fabnet Peak Effective % . | . . . . . Robots Rewired . | . . . . . Allies Hacked . | . . . . . Hacks Repelled . | . . . . . Allies | -11 -10 -10 -10 -9 -------- Run | Yrd Mat Min Exi Min Total Allies . | . . . . . Largest Group . | . . . . . Highest-Rated Group . | . . . . . Highest-Rated Ally . | . . . . . Total Orders . | . . . . . Ally Attacks . | . . . . . Total Damage . | . . . . . Kills . | . . . . . Allies Corrupted . | . . . . . Allies Melted . | . . . . . Intel | -11 -10 -10 -10 -9 ------- Run | Yrd Mat Min Exi Min Robot Analysis Total . | . . . . . Derelict Logs Recovered 2 | . . 1 . 1 Drone Launches . | . . . . . Drone Recoveries . | . . . . . Exploration | -11 -10 -10 -10 -9 ------------- Run | Yrd Mat Min Exi Min Turns Passed 3719 | 81 2126 866 440 206 Spaces Moved 2094 | 48 1140 509 272 125 Core 4 | 4 . . . . Treads 2090 | 44 1140 509 272 125 Legs . | . . . . . Wheels . | . . . . . Hover . | . . . . . Flight . | . . . . . Fastest Speed 50 | 50 160 160 160 160 Average Speed 159 | 151 160 160 160 161 Slowest Speed 240 | 160 160 160 160 240 Overloaded Moves . | . . . . . Propulsion Burnouts . | . . . . . Robots Hopped . | . . . . . Cave-ins Triggered . | . . . . . Exploration Rate (%) 53 | 3 90 79 64 29 Regions Visited 4 Branch Regions 3 Pre-discovered Areas 2 | . . . 1 1 Known Exits Taken 1 | . . 1 . . Unknown Exits Taken 3 | 1 1 . 1 . Scrap Searched 4 | . . 2 . 2 Spaces Dug . | . . . . . Terrain Destroyed 1 | . 1 . . . Melee . | . . . . . Projectile 1 | . 1 . . . AOE . | . . . . . Terrain Rammed . | . . . . . Walls Destroyed . | . . . . . Machines Disabled . | . . . . . Actions | -11 -10 -10 -10 -9 --------- Run | Yrd Mat Min Exi Min Total 2316 | 53 1319 537 276 131 Wait 85 | . 72 11 . 2 Move 2090 | 47 1139 508 271 125 Hop . | . . . . . Pick Up 15 | . 12 2 1 . Fast Attach 13 | 6 7 . . . Attach 2 | . . . . 2 Detach . | . . . . . Swap 16 | . 11 1 3 1 Drop 13 | . 9 2 1 1 Fire 76 | . 64 12 . . Melee . | . . . . . Ram . | . . . . . Kick . | . . . . . Crush 6 | . 5 1 . . Escape Stasis . | . . . . . Rewire . | . . . . . Trap . | . . . . . Miscellaneous . | . . . . . Route ------- -11/Scrapyard -10/Materials (discovered 4 exits: [*Mat x3] / *Min) -10/Mines (discovered 2 exits: [*Mat] / *Exi) -10/Exiles -9/Mines (discovered 1 exit: [*Mat]) History --------- Turn | Location | Event 10 | -11/Scrapyard | Discovered new exit (range 16) 82 | -11/Scrapyard | Entered Materials 311 | -10/Materials | Build established: Mutant 564 | -10/Materials | Discovered new exit (range 16) 630 | -10/Materials | Discovered new exit (range 15) 682 | -10/Materials | Derelicts attacked the area 924 | -10/Materials | Discovered new exit (range 7) 1427 | -10/Materials | Discovered new exit (range 5) 2208 | -10/Materials | Entered Mines 2713 | -10/Mines | Discovered new exit (range 8) 2714 | -10/Mines | Identified exit to Exiles 2951 | -10/Mines | YI-UF0 nonchalantly dropped a Grenade Launcher on the ground 3068 | -10/Mines | Deemed a non-threat by the Exiles lab entrance 3074 | -10/Mines | Entered Exiles 3113 | -10/Exiles | Met 8R-AWN 3142 | -10/Exiles | Met EX-HEX 3188 | -10/Exiles | Met EX-BIN 3210 | -10/Exiles | Aligned with FarCom system 3212 | -10/Exiles | Given EX-Vault access code 3257 | -10/Exiles | Opened EX-Vault 3267 | -10/Exiles | Found Longsword +1 3305 | -10/Exiles | Warned to stay clear of 0b10 Research branches 3326 | -10/Exiles | Exiles lab attacked by MAIN.C 3452 | -10/Exiles | Learned location of Zion (-7) 3498 | -10/Exiles | Discovered new exit (range 12) 3514 | -10/Exiles | Left Exiles lab with Longsword +1 3514 | -10/Exiles | Entered Mines 3520 | -9/Mines | Met a Derelict bent on vengeance 3617 | -9/Mines | Found a damaged Exp. Sensor Array with a note attached 3633 | -9/Mines | Discovered new exit (range 7) 3659 | -9/Mines | Assembled infested the area 3664 | -9/Mines | Assisted by a Guerilla fighting off Assembled 3700 | -9/Mines | Core integrity fell below 50% 3717 | -9/Mines | Core integrity fell below 20% 3720 | -9/Mines | Destroyed by D-53 Grenadier with Mini Grenade Launcher Last Messages --------------- 03693_ K-01 Serf collects debris. 03695_ Hrd. Light Armor Plating destroyed. 03712_ as-76176 destroyed. 03712_ Lgt. Treads destroyed. 03713_ U-05 Engineer builds a Wall. 03714_ U-05 Engineer forms the Earth. 03716_ Lgt. Treads destroyed. 03717_ The unstable cave ceiling collapses. 03717_ U-05 Engineer builds a Wall. 03717_ U-05 Engineer lays Concrete. 03718_ U-05 Engineer builds a Wall. 03718_ Shotgun destroyed. 03718_ U-05 Engineer destroyed. 03718_ Hrd. Light Armor Plating destroyed. 03719_ The unstable cave ceiling collapses. 03719_ U-05 Engineer builds a Wall. 03720_ K-01 Serf collects debris. 03720_ R-06 Scavenger destroyed. 03720_ K-01 Serf destroyed. 03720_ Autogun destroyed. Map ----- +----------------------------------------------------+ | | | | | | | | | | | | | | | | | | | | | | | | | | | | | | | | | | | | | | | | | | | ?????????????##### #####?????????????? | | ???########## # # # ?????????????? | | ???# = # ? #????????????? | | ???# =<% ##### #????????????? | | ???? """ @%! d u #????????????? | | ???? """ = ### #????????????? | | ???# """ ### ##???????????? | | ???# d#### #???????????? | | ???###### ##### #???????????? | | ?????## # ##???# #???????????? | | ????## ##????# ############? | | ???## a#?????# ## * | | ???# #???### ## ######!##? | | ???# ###### #??## #????????? | | ???# ##??#a#### % #????????? | | ???### #??# #####??## ??? | | ?????## #??##### ##????# ??? | | ?????## ! #??????## ##### ???? | | ?????# ##??????## ????? | | ?????# #????#### ??????? | | ?????## ##???## ###?????? | | ??????## #????# ##???????? | | ???????# #???## #????????? | | ???????# #??## ##????????? | | ???????# #### ##?????????? | | ???????# #??????????? | | ???????# #??????????? | | ???????######## ## ##??????????? | | ??????????????## #### #???????????? | +----------------------------------------------------+ Best States ------------- Heat Dissipation 25 Energy Generation 10 Energy Capacity 250 Matter Stores 300 Matter Capacity 300 Sight Range 16 Terrain Scan Density 10 Armor Coverage 150 Evasion (%) 40 Recoil Reduction 2 Item Schematics ----------------- None Robot Schematics ------------------ None Fabricated ------------ Nothing Alien Tech Used ----------------- None Achievements -------------- None Challenges ------------ None Game ------ Seed ModifiedGreatCloak Manual? 0 Play Time 00:24:24 Cumulative 61.5 hours Start 2024.08.28 @ 13:29:48 End 2024.08.28 @ 13:59:58 Sessions 1 Manual Loads 0 Difficulty Rogue Special Mode None Game No. 111 Rogue 111 Adventurer 0 Explorer 0 Win Type - Total 0 Types 0/0/0/0/0/0/0/0/0 Lore% 23 Gallery% 43 Achievement% 36 Wizard Run 0 Options --------- Layout 0 ASCII 0 Keyboard 0 Movement Numpad Keybinds 0 Fullscreen 2 Font 18/SmallcapsGlow Map View 76x50 Zoom Use 0% Tactical HUD 1 Map Filters NONE Filters NONE Steam 1 RUN: a674bd20-f275-45c9-8ffe-a3022e97068b